[Event "CZE-ch Youth G10-G12-G14 2022"]
[Site "Luhacovice"]
[Date "2022.03.12"]
[Round "1.33"]
[White "Sikorova, Jana"]
[Black "Filipova, Vanesa"]
[Result "0-1"]
[ECO "D45"]
[WhiteElo "1427"]
[BlackElo "1146"]
[Annotator "NA"]
[PlyCount "94"]
[EventDate "2022.03.12"]
[EventType "swiss"]
[EventCountry "CZE"]
[SourceTitle "playchess.com"]
[Source "ChessBase"]
[SourceQuality "1"]
[TimeControl "40/5400+30:1800+30"]

1. d4 {[%emt 0:00:07]} d5 {[%emt 0:00:33]} 2. c4 {[%emt 0:00:16]} dxc4 {[%emt 0:00:43]} 3. e3 {[%emt 0:00:42]} Nf6 {[%emt 0:06:24]} 4. Bxc4 {[%emt 0:01:40]} e6 {[%emt 0:03:46]} 5. Nf3 {[%emt 0:03:54]} Be7 {[%emt 0:01:53]} 6. O-O {[%emt 0:01:59]} O-O {[%emt 0:01:39]} 7. Nc3 {[%emt 0:03:30]} c5 {[%emt 0:20:07]} 8. Qc2 {[%emt 0:06:16]} Qc7 {[%emt 0:02:10]} 9. Bd3 {[%emt 0:04:14]} Nc6 {[%emt 0:05:55]} 10. Ne4 {[%emt 0:03:34]} Ng4 {[%emt 0:16:57]} 11. Nxc5 {[%emt 0:10:54]} Nb4 {[%emt 0:01:24]} 12. Qc3 {[%emt 0:07:22]} Bxc5 {[%emt 0:01:27]} 13. dxc5 {[%emt 0:01:05]} Nxd3 {[%emt 0:00:59]} 14. Qxd3 {[%emt 0:00:46]} Qxc5 {[%emt 0:01:10]} 15. Bd2 {[%emt 0:00:57]} b6 {[%emt 0:01:05]} 16. Rac1 {[%emt 0:00:33]} Qh5 {[%emt 0:02:31]} 17. Rc7 {[%emt 0:02:25]} a5 {[%emt 0:01:46]} 18. Rfc1 {[%emt 0:03:32]} e5 {[%emt 0:02:05]} 19. Bc3 {[%emt 0:06:47]} Ba6 {[%emt 0:03:07]} 20. Qd5 {[%emt 0:03:13]} Be2 {[%emt 0:04:59]} 21. h3 {[%emt 0:02:06]} Nf6 {[%emt 0:06:14]} 22. Qxe5 {[%emt 0:05:40]} Bxf3 {[%emt 0:02:17]} 23. Qg3 {[%emt 0:08:57]} Qf5 {[%emt 0:06:58]} 24. Bxf6 {[%emt 0:00:52]} Qxf6 {[%emt 0:00:17]} 25. Qxf3 {[%emt 0:00:25]} Qxb2 {[%emt 0:02:58]} 26. Qc6 {[%emt 0:04:21]} h6 {[%emt 0:00:32]} 27. Rc2 {[%emt 0:00:46]} Qa1+ {[%emt 0:00:27]} 28. Kh2 {[%emt 0:00:26]} Qe5+ {[%emt 0:00:14]} 29. g3 {[%emt 0:01:10]} b5 {[%emt 0:00:50]} 30. Rb7 {[%emt 0:02:02]} b4 {[%emt 0:00:23]} 31. Qc5 {[%emt 0:02:17]} Qe4 {[%emt 0:00:35]} 32. Rb5 {[%emt 0:00:29]} Rfd8 {[%emt 0:02:43]} 33. Qf5 {[%emt 0:05:44]} Qxf5 {[%emt 0:01:04]} 34. Rxf5 {[%emt 0:00:03]} Rd1 {[%emt 0:00:04]} 35. Rc7 {[%emt 0:00:50]} f6 {[%emt 0:00:18]} 36. Rc2 {[%emt 0:02:21]} a4 {[%emt 0:00:48]} 37. Rb5 {[%emt 0:00:46]} Rb1 {[%emt 0:00:00]} 38. Kg2 {[%emt 0:01:55]} Kh7 {[%emt 0:00:56]} 39. Kf3 {[%emt 0:01:32]} b3 {[%emt 0:01:04]} 40. axb3 {[%emt 0:01:00]} a3 {[%emt 0:00:33]} 41. Rb7 {[%emt 0:32:41]} a2 {[%emt 0:30:27]} 42. Rcc7 {[%emt 0:00:13]} Rg8 {[%emt 0:00:31]} 43. Ra7 {[%emt 0:01:05]} a1=Q {[%emt 0:00:12]} 44. Rxa1 {[%emt 0:00:15]} Rxa1 {[%emt 0:00:04]} 45. Rb7 {[%emt 0:00:31]} Rb1 {[%emt 0:00:22]} 46. b4 {[%emt 0:00:40]} Rc8 {[%emt 0:00:22]} 47. b5 {[%emt 0:00:33]} Rc5 {[%emt 0:00:18]} 0-1

[Event "CZE-ch Youth G10-G12-G14 2022"]
[Site "Luhacovice"]
[Date "2022.03.12"]
[Round "1.34"]
[White "Archlebova, Stela"]
[Black "Dobsa, Emma"]
[Result "0-1"]
[ECO "C55"]
[WhiteElo "1121"]
[BlackElo "1425"]
[Annotator "NA"]
[PlyCount "36"]
[EventDate "2022.03.12"]
[EventType "swiss"]
[EventCountry "CZE"]
[SourceTitle "playchess.com"]
[Source "ChessBase"]
[SourceQuality "1"]
[TimeControl "40/5400+30:1800+30"]

1. e4 {[%emt 0:00:08]} e5 {[%emt 0:00:03]} 2. Nf3 {[%emt 0:00:24]} Nc6 {[%emt 0:00:12]} 3. Nc3 {[%emt 0:00:57]} Nf6 {[%emt 0:00:06]} 4. Bc4 {[%emt 0:00:49]} Nxe4 {[%emt 0:00:16]} 5. Nxe4 {[%emt 0:00:22]} d5 {[%emt 0:00:10]} 6. Bb5 {[%emt 0:02:26]} dxe4 {[%emt 0:00:18]} 7. Nxe5 {[%emt 0:00:46]} Qg5 {[%emt 0:13:53]} 8. d4 {[%emt 0:11:04]} Qxg2 {[%emt 0:03:48]} 9. Rf1 {[%emt 0:00:17]} a6 {[%emt 0:01:48]} 10. Bc4 {[%emt 0:04:32]} Nxe5 {[%emt 0:01:33]} 11. dxe5 {[%emt 0:01:22]} Be7 {[%emt 0:10:07]} 12. Bf4 {[%emt 0:01:34]} O-O {[%emt 0:02:17]} 13. Qe2 {[%emt 0:00:43]} Bg4 {[%emt 0:01:47]} 14. Qe3 {[%emt 0:12:07]} Rad8 {[%emt 0:06:59]} 15. Bg5 {[%emt 0:14:41]} Bxg5 {[%emt 0:03:08]} 16. Qxg5 {[%emt 0:00:29]} Qf3 {[%emt 0:02:05]} 17. Qc1 {[%emt 0:03:34]} b5 {[%emt 0:03:44]} 18. Rg1 {[%emt 0:06:53]} bxc4 {[%emt 0:01:56]} 0-1

[Event "CZE-ch Youth G10-G12-G14 2022"]
[Site "Luhacovice"]
[Date "2022.03.12"]
[Round "1.35"]
[White "Mikesova, Lenka"]
[Black "Myskova, Veronika"]
[Result "1-0"]
[ECO "B35"]
[WhiteElo "1364"]
[BlackElo "1117"]
[Annotator "NA"]
[PlyCount "73"]
[EventDate "2022.03.12"]
[EventType "swiss"]
[EventCountry "CZE"]
[SourceTitle "playchess.com"]
[Source "ChessBase"]
[SourceQuality "1"]
[TimeControl "40/5400+30:1800+30"]

1. e4 {[%emt 0:00:03]} c5 {[%emt 0:00:28]} 2. Nf3 {[%emt 0:00:13]} Nc6 {[%emt 0:00:13]} 3. d4 {[%emt 0:00:17]} cxd4 {[%emt 0:00:12]} 4. Nxd4 {[%emt 0:00:19]} g6 {[%emt 0:00:12]} 5. Nc3 {[%emt 0:01:15]} Bg7 {[%emt 0:01:05]} 6. Be3 {[%emt 0:01:56]} Nf6 {[%emt 0:01:41]} 7. f3 {[%emt 0:04:25]} O-O {[%emt 0:04:15]} 8. Bc4 {[%emt 0:01:53]} a6 {[%emt 0:02:12]} 9. Qd2 {[%emt 0:05:27]} b5 {[%emt 0:04:39]} 10. Nxc6 {[%emt 0:04:25]} dxc6 {[%emt 0:01:35]} 11. Qxd8 {[%emt 0:04:24]} Rxd8 {[%emt 0:01:02]} 12. Bb3 {[%emt 0:01:25]} a5 {[%emt 0:02:29]} 13. a4 {[%emt 0:04:21]} b4 {[%emt 0:04:44]} 14. Ne2 {[%emt 0:02:18]} Ba6 {[%emt 0:02:28]} 15. Kf2 {[%emt 0:06:25]} Rac8 {[%emt 0:12:46]} 16. Rad1 {[%emt 0:06:07]} e6 {[%emt 0:04:53]} 17. Bb6 {[%emt 0:06:58]} Re8 {[%emt 0:05:11]} 18. Bxa5 {[%emt 0:01:44]} c5 {[%emt 0:00:47]} 19. c4 {[%emt 0:06:39]} Bb7 {[%emt 0:09:55]} 20. e5 {[%emt 0:01:50]} Nh5 {[%emt 0:06:49]} 21. g4 {[%emt 0:00:38]} Bxe5 {[%emt 0:03:25]} 22. gxh5 {[%emt 0:00:27]} Bxb2 {[%emt 0:00:22]} 23. hxg6 {[%emt 0:00:43]} hxg6 {[%emt 0:00:08]} 24. h4 {[%emt 0:02:39]} e5 {[%emt 0:03:23]} 25. h5 {[%emt 0:02:10]} Kg7 {[%emt 0:02:22]} 26. hxg6 {[%emt 0:00:52]} fxg6 {[%emt 0:00:08]} 27. Rd7+ {[%emt 0:00:37]} Kf6 {[%emt 0:00:47]} 28. Rxb7 {[%emt 0:00:36]} e4 {[%emt 0:00:47]} 29. Rb6+ {[%emt 0:01:05]} Kf5 {[%emt 0:00:12]} 30. fxe4+ {[%emt 0:01:15]} Kxe4 {[%emt 0:00:18]} 31. Bc2+ {[%emt 0:00:50]} Ke5 {[%emt 0:00:26]} 32. Bxg6 {[%emt 0:05:42]} Rh8 {[%emt 0:03:11]} 33. Rxh8 {[%emt 0:01:07]} Rxh8 {[%emt 0:00:07]} 34. Rc6 {[%emt 0:03:59]} Rh2+ {[%emt 0:01:19]} 35. Kf3 {[%emt 0:00:25]} Rh3+ {[%emt 0:00:53]} 36. Kg2 {[%emt 0:00:11]} Rh6 {[%emt 0:00:26]} 37. Bc7# {[%emt 0:00:15]} 1-0

[Event "CZE-ch Youth G10-G12-G14 2022"]
[Site "Luhacovice"]
[Date "2022.03.12"]
[Round "1.36"]
[White "Kavanova, Anezka"]
[Black "Hetfleischova, Elen"]
[Result "0-1"]
[ECO "B34"]
[WhiteElo "1089"]
[BlackElo "1363"]
[Annotator "NA"]
[PlyCount "111"]
[EventDate "2022.03.12"]
[EventType "swiss"]
[EventCountry "CZE"]
[SourceTitle "playchess.com"]
[Source "ChessBase"]
[SourceQuality "1"]
[TimeControl "40/5400+30:1800+30"]

1. e4 {[%emt 0:00:11]} c5 {[%emt 0:00:03]} 2. Nf3 {[%emt 0:00:06]} Nc6 {[%emt 0:00:06]} 3. d4 {[%emt 0:00:09]} cxd4 {[%emt 0:00:07]} 4. Nxd4 {[%emt 0:00:11]} g6 {[%emt 0:00:08]} 5. Nc3 {[%emt 0:00:28]} Bg7 {[%emt 0:00:05]} 6. Be3 {[%emt 0:00:15]} Nf6 {[%emt 0:00:25]} 7. f3 {[%emt 0:00:20]} O-O {[%emt 0:00:22]} 8. Be2 {[%emt 0:01:34]} a6 {[%emt 0:00:45]} 9. Qd2 {[%emt 0:02:08]} Qc7 {[%emt 0:02:17]} 10. Nb3 {[%emt 0:01:43]} d6 {[%emt 0:06:46]} 11. Bh6 {[%emt 0:03:47]} b5 {[%emt 0:04:09]} 12. Bxg7 {[%emt 0:02:15]} Kxg7 {[%emt 0:00:04]} 13. g4 {[%emt 0:10:14]} b4 {[%emt 0:16:31]} 14. Nd5 {[%emt 0:06:59]} Nxd5 {[%emt 0:00:29]} 15. exd5 {[%emt 0:00:15]} Ne5 {[%emt 0:00:37]} 16. h4 {[%emt 0:05:51]} f6 {[%emt 0:25:17]} 17. O-O-O {[%emt 0:07:06]} a5 {[%emt 0:02:29]} 18. g5 {[%emt 0:06:29]} a4 {[%emt 0:02:14]} 19. gxf6+ {[%emt 0:00:17]} exf6 {[%emt 0:01:15]} 20. Na1 {[%emt 0:04:26]} b3 {[%emt 0:10:05]} 21. axb3 {[%emt 0:01:47]} a3 {[%emt 0:03:38]} 22. c4 {[%emt 0:03:18]} Qa7 {[%emt 0:03:17]} 23. Kb1 {[%emt 0:01:21]} axb2 {[%emt 0:12:42]} 24. Qxb2 {[%emt 0:00:35]} Bf5+ {[%emt 0:01:08]} 25. Kc1 {[%emt 0:00:12]} Qxa1+ {[%emt 0:05:30]} 26. Qxa1 {[%emt 0:00:09]} Rxa1+ {[%emt 0:00:02]} 27. Kb2 {[%emt 0:00:07]} Ra7 {[%emt 0:01:00]} 28. b4 {[%emt 0:00:49]} Rb8 {[%emt 0:00:46]} 29. b5 {[%emt 0:00:15]} Rc7 {[%emt 0:00:46]} 30. Kc3 {[%emt 0:00:41]} Rxb5 {[%emt 0:00:44]} 31. Kd4 {[%emt 0:01:05]} Rb4 {[%emt 0:00:32]} 32. Rc1 {[%emt 0:00:28]} Nd7 {[%emt 0:00:37]} 33. Bd1 {[%emt 0:03:24]} Ne5 {[%emt 0:00:17]} 34. Be2 {[%emt 0:00:27]} Rb2 {[%emt 0:00:36]} 35. Bd1 {[%emt 0:02:06]} h5 {[%emt 0:00:52]} 36. f4 {[%emt 0:01:43]} Ng4 {[%emt 0:00:19]} 37. Bxg4 {[%emt 0:01:28]} Bxg4 {[%emt 0:00:19]} 38. c5 {[%emt 0:00:45]} Rd2+ {[%emt 0:00:46]} 39. Ke3 {[%emt 0:01:45]} Rxd5 {[%emt 0:00:30]} 40. cxd6 {[%emt 0:01:10]} Rxc1 {[%emt 0:00:11]} 41. Rxc1 {[%emt 0:30:12]} Rxd6 {[%emt 0:30:11]} 42. Ra1 {[%emt 0:01:12]} Kf7 {[%emt 0:01:29]} 43. Rc1 {[%emt 0:01:06]} Ke6 {[%emt 0:00:35]} 44. Ra1 {[%emt 0:01:03]} Rd5 {[%emt 0:00:25]} 45. Rc1 {[%emt 0:01:09]} Kf5 {[%emt 0:00:29]} 46. Ra1 {[%emt 0:00:21]} Rb5 {[%emt 0:00:25]} 47. Ra3 {[%emt 0:01:54]} Rc5 {[%emt 0:01:03]} 48. Rb3 {[%emt 0:01:00]} Bd1 {[%emt 0:00:21]} 49. Rd3 {[%emt 0:00:20]} Bc2 {[%emt 0:00:36]} 50. Rd4 {[%emt 0:01:35]} Rb5 {[%emt 0:00:32]} 51. Kd2 {[%emt 0:00:50]} Be4 {[%emt 0:00:35]} 52. Rd6 {[%emt 0:01:44]} Rd5+ {[%emt 0:00:11]} 53. Rxd5+ {[%emt 0:00:13]} Bxd5 {[%emt 0:00:05]} 54. Ke3 {[%emt 0:00:22]} Kg4 {[%emt 0:00:07]} 55. Kf2 {[%emt 0:00:48]} Kxh4 {[%emt 0:00:32]} 56. Kg1 {[%emt 0:00:21]} 0-1

[Event "CZE-ch Youth G10-G12-G14 2022"]
[Site "Luhacovice"]
[Date "2022.03.12"]
[Round "1.37"]
[White "Barteckova, Denisa"]
[Black "Svrchokrylova, Ludmila"]
[Result "1-0"]
[ECO "C54"]
[WhiteElo "1323"]
[BlackElo "1024"]
[Annotator "NA"]
[PlyCount "75"]
[EventDate "2022.03.12"]
[EventType "swiss"]
[EventCountry "CZE"]
[SourceTitle "playchess.com"]
[Source "ChessBase"]
[SourceQuality "1"]
[TimeControl "40/5400+30:1800+30"]

1. e4 {[%emt 0:00:19]} e5 {[%emt 0:00:30]} 2. Nf3 {[%emt 0:00:30]} Nc6 {[%emt 0:00:07]} 3. Bc4 {[%emt 0:00:25]} Bc5 {[%emt 0:00:09]} 4. c3 {[%emt 0:00:23]} Nf6 {[%emt 0:00:53]} 5. d3 {[%emt 0:00:43]} d6 {[%emt 0:00:10]} 6. Be3 {[%emt 0:00:52]} Bg4 {[%emt 0:01:02]} 7. h3 {[%emt 0:05:42]} Be6 {[%emt 0:03:32]} 8. Nbd2 {[%emt 0:05:39]} Qd7 {[%emt 0:04:57]} 9. Ng5 {[%emt 0:09:15]} d5 {[%emt 0:02:10]} 10. Bxc5 {[%emt 0:00:01]} dxc4 {[%emt 0:03:23]} 11. Nxe6 {[%emt 0:00:22]} fxe6 {[%emt 0:00:57]} 12. Nxc4 {[%emt 0:02:20]} O-O-O {[%emt 0:01:42]} 13. Ke2 {[%emt 0:01:19]} Rhf8 {[%emt 0:01:21]} 14. Bxf8 {[%emt 0:00:48]} Rxf8 {[%emt 0:00:28]} 15. b4 {[%emt 0:00:53]} Nh5 {[%emt 0:05:25]} 16. g3 {[%emt 0:01:45]} Qf7 {[%emt 0:08:58]} 17. Rh2 {[%emt 0:02:15]} Qf3+ {[%emt 0:00:08]} 18. Ke1 {[%emt 0:01:23]} Qf7 {[%emt 0:00:14]} 19. b5 {[%emt 0:05:24]} Nb8 {[%emt 0:06:04]} 20. Nxe5 {[%emt 0:05:37]} Qf6 {[%emt 0:01:59]} 21. Qxh5 {[%emt 0:03:52]} g6 {[%emt 0:01:39]} 22. Qh6 {[%emt 0:00:02]} Rd8 {[%emt 0:00:37]} 23. d4 {[%emt 0:01:43]} Nd7 {[%emt 0:00:25]} 24. Nxd7 {[%emt 0:08:28]} Rxd7 {[%emt 0:06:05]} 25. f4 {[%emt 0:00:13]} e5 {[%emt 0:02:13]} 26. Rd1 {[%emt 0:00:50]} Qb6 {[%emt 0:03:00]} 27. Rhd2 {[%emt 0:01:01]} Qxb5 {[%emt 0:04:16]} 28. dxe5 {[%emt 0:02:02]} Rxd2 {[%emt 0:00:42]} 29. Rxd2 {[%emt 0:02:35]} Qb1+ {[%emt 0:00:08]} 30. Kf2 {[%emt 0:00:17]} Qb6+ {[%emt 0:00:51]} 31. Kf3 {[%emt 0:00:26]} Qc5 {[%emt 0:00:14]} 32. Rd3 {[%emt 0:01:26]} b6 {[%emt 0:00:56]} 33. Qxh7 {[%emt 0:00:20]} Qg1 {[%emt 0:00:17]} 34. Qd7+ {[%emt 0:00:37]} Kb7 {[%emt 0:00:50]} 35. Qd5+ {[%emt 0:00:35]} Kb8 {[%emt 0:00:14]} 36. Kg4 {[%emt 0:00:15]} Qf2 {[%emt 0:00:26]} 37. Kg5 {[%emt 0:02:10]} Qxg3+ {[%emt 0:00:42]} 38. Rxg3 {[%emt 0:00:42]} 1-0

[Event "CZE-ch Youth G10-G12-G14 2022"]
[Site "Luhacovice"]
[Date "2022.03.12"]
[Round "1.38"]
[White "Dufkova, Tereza"]
[Black "Veverkova, Dorota"]
[Result "0-1"]
[ECO "B02"]
[WhiteElo "1014"]
[BlackElo "1320"]
[Annotator "NA"]
[PlyCount "78"]
[EventDate "2022.03.12"]
[EventType "swiss"]
[EventCountry "CZE"]
[SourceTitle "playchess.com"]
[Source "ChessBase"]
[SourceQuality "1"]
[TimeControl "40/5400+30:1800+30"]

1. e4 {[%emt 0:00:05]} Nf6 {[%emt 0:00:07]} 2. Nc3 {[%emt 0:00:20]} d5 {[%emt 0:00:06]} 3. exd5 {[%emt 0:02:34]} Nxd5 {[%emt 0:00:14]} 4. Nxd5 {[%emt 0:00:07]} Qxd5 {[%emt 0:00:11]} 5. d4 {[%emt 0:00:18]} Nc6 {[%emt 0:00:20]} 6. Nf3 {[%emt 0:00:15]} Bg4 {[%emt 0:00:18]} 7. Be3 {[%emt 0:02:03]} g6 {[%emt 0:02:53]} 8. Be2 {[%emt 0:02:44]} Bg7 {[%emt 0:01:19]} 9. h3 {[%emt 0:00:25]} Bxf3 {[%emt 0:00:59]} 10. Bxf3 {[%emt 0:00:29]} Qa5+ {[%emt 0:00:40]} 11. c3 {[%emt 0:00:25]} Qb5 {[%emt 0:01:07]} 12. Be2 {[%emt 1:03:22]} Qxb2 {[%emt 0:20:07]} 13. O-O {[%emt 0:02:05]} Qa3 {[%emt 0:01:50]} 14. c4 {[%emt 0:00:30]} Qd6 {[%emt 0:00:30]} 15. c5 {[%emt 0:00:30]} Qd8 {[%emt 0:00:30]} 16. Rb1 {[%emt 0:00:30]} Rb8 {[%emt 0:00:30]} 17. Qa4 {[%emt 0:00:30]} O-O {[%emt 0:00:30]} 18. Rfd1 {[%emt 0:00:30]} e6 {[%emt 0:00:30]} 19. Bf3 {[%emt 0:00:30]} Qe8 {[%emt 0:00:30]} 20. d5 {[%emt 0:00:30]} Ne5 {[%emt 0:00:30]} 21. c6 {[%emt 0:00:30]} bxc6 {[%emt 0:00:30]} 22. dxc6 {[%emt 0:00:30]} Nxf3+ {[%emt 0:00:30]} 23. gxf3 {[%emt 0:00:30]} Be5 {[%emt 0:00:30]} 24. Qa5 {[%emt 0:00:30]} Bd6 {[%emt 0:00:30]} 25. Bh6 {[%emt 0:00:30]} Qxc6 {[%emt 0:00:30]} 26. Bxf8 {[%emt 0:00:30]} Rxf8 {[%emt 0:00:30]} 27. Qxa7 {[%emt 0:00:30]} Qxf3 {[%emt 0:00:30]} 28. h4 {[%emt 0:00:30]} Kg7 {[%emt 0:00:30]} 29. Qd4+ {[%emt 0:00:30]} f6 {[%emt 0:00:30]} 30. Rd3 {[%emt 0:00:30]} Qf5 {[%emt 0:00:30]} 31. a4 {[%emt 0:00:30]} Qf3 {[%emt 0:00:35]} 32. Rdd1 {[%emt 0:00:30]} Qf5 {[%emt 0:01:09]} 33. Rd3 {[%emt 0:00:37]} Bc5 {[%emt 0:03:35]} 34. Qd7+ {[%emt 0:01:37]} Rf7 {[%emt 0:00:40]} 35. Qc6 {[%emt 0:02:26]} Qxd3 {[%emt 0:02:34]} 36. Rb8 {[%emt 0:05:29]} Qd4 {[%emt 0:01:30]} 37. Kh2 {[%emt 0:02:33]} Qxf2+ {[%emt 0:01:34]} 38. Kh3 {[%emt 0:00:07]} Qe3+ {[%emt 0:01:03]} 39. Kg4 {[%emt 0:01:50]} f5# {[%emt 0:00:55]} 0-1

[Event "CZE-ch Youth G10-G12-G14 2022"]
[Site "Luhacovice"]
[Date "2022.03.12"]
[Round "1.39"]
[White "Cinkova, Vicky"]
[Black "Lipovska Viktorie"]
[Result "1-0"]
[ECO "C45"]
[WhiteElo "1317"]
[BlackElo "1189"]
[Annotator "NA"]
[PlyCount "56"]
[EventDate "2022.03.12"]
[EventType "swiss"]
[EventCountry "CZE"]
[SourceTitle "playchess.com"]
[Source "ChessBase"]
[SourceQuality "1"]
[TimeControl "40/5400+30:1800+30"]

1. e4 {[%emt 0:00:11]} e5 {[%emt 0:00:07]} 2. Nf3 {[%emt 0:00:17]} Nc6 {[%emt 0:00:12]} 3. Nc3 {[%emt 0:00:07]} Nf6 {[%emt 0:00:18]} 4. d4 {[%emt 0:00:15]} exd4 {[%emt 0:00:21]} 5. Nxd4 {[%emt 0:00:11]} Nxd4 {[%emt 0:00:13]} 6. Qxd4 {[%emt 0:00:10]} b6 {[%emt 0:00:26]} 7. Bg5 {[%emt 0:00:37]} Be7 {[%emt 0:00:25]} 8. Bc4 {[%emt 0:01:40]} d6 {[%emt 0:01:30]} 9. O-O {[%emt 0:02:56]} O-O {[%emt 0:00:40]} 10. Rad1 {[%emt 0:03:11]} Be6 {[%emt 0:00:55]} 11. Bxe6 {[%emt 0:00:29]} fxe6 {[%emt 0:00:30]} 12. Qc4 {[%emt 0:06:30]} Qd7 {[%emt 0:01:41]} 13. Nb5 {[%emt 0:11:16]} Rfc8 {[%emt 0:04:45]} 14. Nd4 {[%emt 0:05:54]} d5 {[%emt 0:05:17]} 15. exd5 {[%emt 0:03:23]} Nxd5 {[%emt 0:00:38]} 16. Bxe7 {[%emt 0:00:36]} Qxe7 {[%emt 0:00:47]} 17. Qc6 {[%emt 0:03:46]} Re8 {[%emt 0:02:23]} 18. Rfe1 {[%emt 0:03:02]} Kf7 {[%emt 0:01:56]} 19. Rxe6 {[%emt 0:01:46]} Qc5 {[%emt 0:02:04]} 20. Qd7+ {[%emt 0:01:56]} Re7 {[%emt 0:00:26]} 21. Rxe7+ {[%emt 0:01:16]} Nxe7 {[%emt 0:00:52]} 22. Qe6+ {[%emt 0:02:28]} Kf8 {[%emt 0:00:27]} 23. Qe4 {[%emt 0:00:53]} Re8 {[%emt 0:00:36]} 24. Ne6+ {[%emt 0:00:07]} Kf7 {[%emt 0:00:49]} 25. Nxc5 {[%emt 0:00:25]} bxc5 {[%emt 0:00:21]} 26. h3 {[%emt 0:02:38]} Kg8 {[%emt 0:00:29]} 27. Qe6+ {[%emt 0:01:58]} Kh8 {[%emt 0:00:22]} 28. Qd7 {[%emt 0:00:44]} Nf5 {[%emt 0:00:34]} 1-0

[Event "CZE-ch Youth G10-G12-G14 2022"]
[Site "Luhacovice"]
[Date "2022.03.12"]
[Round "1.40"]
[White "Zilava Lucie"]
[Black "Reznickova, Sibyla"]
[Result "1-0"]
[ECO "C50"]
[WhiteElo "1059"]
[BlackElo "1304"]
[Annotator "NA"]
[PlyCount "120"]
[EventDate "2022.03.12"]
[EventType "swiss"]
[EventCountry "CZE"]
[SourceTitle "playchess.com"]
[Source "ChessBase"]
[SourceQuality "1"]
[TimeControl "40/5400+30:1800+30"]

1. e4 {[%emt 0:00:03]} e5 {[%emt 0:00:10]} 2. Nf3 {[%emt 0:00:08]} Nc6 {[%emt 0:00:13]} 3. Bc4 {[%emt 0:00:36]} Bc5 {[%emt 0:01:08]} 4. Nc3 {[%emt 0:01:07]} d6 {[%emt 0:00:31]} 5. d3 {[%emt 0:01:01]} Bg4 {[%emt 0:00:33]} 6. Nd5 {[%emt 0:01:02]} Nd4 {[%emt 0:01:15]} 7. c3 {[%emt 0:00:49]} Nxf3+ {[%emt 0:01:22]} 8. gxf3 {[%emt 0:00:40]} Bh5 {[%emt 0:01:10]} 9. b4 {[%emt 0:03:10]} Bb6 {[%emt 0:01:21]} 10. Nxb6 {[%emt 0:01:45]} cxb6 {[%emt 0:01:24]} 11. Bb5+ {[%emt 0:00:24]} Kf8 {[%emt 0:02:37]} 12. d4 {[%emt 0:02:33]} Qf6 {[%emt 0:04:37]} 13. Be2 {[%emt 0:00:40]} Rc8 {[%emt 0:02:23]} 14. Rg1 {[%emt 0:03:05]} h6 {[%emt 0:05:23]} 15. Bb2 {[%emt 0:04:01]} Ne7 {[%emt 0:03:33]} 16. f4 {[%emt 0:04:14]} Bxe2 {[%emt 0:04:11]} 17. Qxe2 {[%emt 0:00:26]} Qxf4 {[%emt 0:01:35]} 18. Qg4 {[%emt 0:04:29]} Qxg4 {[%emt 0:02:59]} 19. Rxg4 {[%emt 0:00:07]} h5 {[%emt 0:00:43]} 20. Rg2 {[%emt 0:01:19]} Rh6 {[%emt 0:02:39]} 21. Bc1 {[%emt 0:01:14]} Rf6 {[%emt 0:02:59]} 22. Bd2 {[%emt 0:01:10]} exd4 {[%emt 0:03:10]} 23. cxd4 {[%emt 0:01:22]} Rc4 {[%emt 0:02:14]} 24. e5 {[%emt 0:01:11]} dxe5 {[%emt 0:00:41]} 25. dxe5 {[%emt 0:00:18]} Re4+ {[%emt 0:00:34]} 26. Kf1 {[%emt 0:00:43]} Rf5 {[%emt 0:03:17]} 27. Rd1 {[%emt 0:00:55]} Kg8 {[%emt 0:02:33]} 28. Bh6 {[%emt 0:01:51]} Ng6 {[%emt 0:02:41]} 29. Rd8+ {[%emt 0:04:14]} Kh7 {[%emt 0:01:46]} 30. Bd2 {[%emt 0:01:37]} Nh4 {[%emt 0:03:12]} 31. Rg3 {[%emt 0:03:12]} Nf3 {[%emt 0:03:09]} 32. Kg2 {[%emt 0:01:56]} Nxd2 {[%emt 0:09:56]} 33. Rxd2 {[%emt 0:00:20]} Rexe5 {[%emt 0:03:12]} 34. Rd7 {[%emt 0:01:09]} Re2 {[%emt 0:01:02]} 35. Rf3 {[%emt 0:00:46]} Rxf3 {[%emt 0:01:13]} 36. Kxf3 {[%emt 0:00:06]} Rxa2 {[%emt 0:00:12]} 37. Rxf7 {[%emt 0:00:25]} a5 {[%emt 0:01:58]} 38. Rxb7 {[%emt 0:01:42]} axb4 {[%emt 0:03:20]} 39. Rxb6 {[%emt 0:00:27]} Rb2 {[%emt 0:00:33]} 40. h4 {[%emt 0:00:35]} b3 {[%emt 0:01:11]} 41. Kg2 {[%emt 0:30:52]} Kg8 {[%emt 0:31:13]} 42. Kf3 {[%emt 0:00:26]} Kf7 {[%emt 0:00:44]} 43. Ke3 {[%emt 0:00:13]} Ke7 {[%emt 0:00:48]} 44. f3 {[%emt 0:00:37]} Rb1 {[%emt 0:01:02]} 45. Kf4 {[%emt 0:01:04]} b2 {[%emt 0:00:39]} 46. Kf5 {[%emt 0:01:19]} g6+ {[%emt 0:03:30]} 47. Kf4 {[%emt 0:02:15]} Kd7 {[%emt 0:01:28]} 48. Rb3 {[%emt 0:00:59]} Kd6 {[%emt 0:01:02]} 49. Rb8 {[%emt 0:00:52]} Kd5 {[%emt 0:00:56]} 50. Rb3 {[%emt 0:01:22]} Kc4 {[%emt 0:01:27]} 51. Rb6 {[%emt 0:00:49]} Kd3 {[%emt 0:01:16]} 52. Rb3+ {[%emt 0:00:14]} Ke2 {[%emt 0:02:02]} 53. Rb6 {[%emt 0:00:16]} Kf2 {[%emt 0:00:37]} 54. Rb5 {[%emt 0:00:10]} Kg2 {[%emt 0:01:23]} 55. Rb3 {[%emt 0:00:14]} Kh3 {[%emt 0:00:44]} 56. Rb4 {[%emt 0:00:06]} Kxh4 {[%emt 0:01:14]} 57. Ke5+ {[%emt 0:00:07]} Kg3 {[%emt 0:00:29]} 58. Kf6 {[%emt 0:00:18]} Kxf3 {[%emt 0:01:14]} 59. Kxg6 {[%emt 0:01:19]} Rg1+ {[%emt 0:00:20]} 60. Kxh5 {[%emt 0:00:11]} b1=Q {[%emt 0:00:33]} 1-0